bitfinex-derivatives/quotes_BTCF0:USTF0_20251009
["timestamp","ask_amount","ask_price","bid_price","bid_amount"]
[1759978235761,0.41664,121860.0,121850.0,4.37135054]
[1759978235955,0.4986849,121860.0,121850.0,3.26127054]
[1759978236152,0.8807849,121860.0,121850.0,1.31460947]
[1759978236360,0.8807849,121860.0,121850.0,1.39666107]
[1759978236561,0.8807849,121860.0,121850.0,0.64742107]
[1759978236762,0.5199849,121860.0,121850.0,0.64742107]
[1759978236963,0.5199847,121860.0,121850.0,1.75738107]
[1759978237964,0.5199847,121860.0,121850.0,1.00822107]
[1759978238163,0.5199847,121860.0,121850.0,1.75734107]
[1759978238867,0.43794,121860.0,121850.0,1.57159054]
[1759978239065,0.41664,121860.0,121850.0,2.32055054]
[1759978239862,0.4986847,121860.0,121850.0,2.32055054]
[1759978240161,0.4986847,121860.0,121850.0,1.00822107]
[1759978240363,0.8808247,121860.0,121850.0,0.56536947]
[1759978240564,0.8808247,121860.0,121850.0,1.39626087]
[1759978241264,0.8808247,121860.0,121850.0,1.37757606]
[1759978241760,0.8808247,121860.0,121850.0,0.54668466]
[1759978241964,0.0820514,121850.0,121840.0,0.64542417]
[1759978242267,0.1169114,121850.0,121840.0,1.39410417]
[1759978242563,0.13549955,121850.0,121840.0,1.39410417]
[1759978243360,0.89829955,121850.0,121840.0,0.004]
[1759978243565,0.89829955,121850.0,121840.0,1.31600947]
[1759978243758,0.89829955,121850.0,121840.0,0.75264]
[1759978244364,0.89829955,121850.0,121840.0,1.31600947]
[1759978245268,0.89829955,121850.0,121840.0,0.56736947]
[1759978245566,0.89829955,121850.0,121840.0,1.31608947]
[1759978245762,0.89829955,121850.0,121840.0,0.004]
[1759978245763,0.9647696,121850.0,121840.0,0.004]
[1759978245968,0.9647696,121850.0,121840.0,0.74064]
[1759978246267,1.52813907,121850.0,121840.0,0.004]
[1759978246471,0.1169415,121820.0,121810.0,0.64544757]
[1759978246766,0.13552965,121820.0,121810.0,0.64544757]
[1759978247471,0.49632965,121820.0,121810.0,0.56336947]
[1759978247660,0.49632965,121820.0,121810.0,1.31216947]
[1759978248657,0.49632965,121820.0,121810.0,0.8308782]
[1759978248862,0.49732965,121820.0,121810.0,1.31816947]
[1759978249068,0.49832965,121820.0,121810.0,1.31816947]
[1759978249273,0.89832965,121820.0,121810.0,0.56936947]
[1759978249462,0.95666823,121820.0,121810.0,0.75476]
[1759978249660,0.95666823,121820.0,121810.0,0.006]
[1759978249857,0.95666823,121820.0,121810.0,0.75484]
[1759978250170,0.55666823,121820.0,121810.0,0.65143987]
[1759978250359,0.13752185,121820.0,121810.0,1.40027987]
[1759978250669,0.13752185,121820.0,121810.0,1.31820947]
[1759978250864,0.89832185,121820.0,121810.0,0.56936947]
[1759978251063,0.89832185,121820.0,121810.0,1.31856947]
[1759978251566,0.89832185,121820.0,121810.0,0.56936947]
[1759978251757,0.89732185,121820.0,121810.0,0.004]
[1759978251960,0.90032185,121820.0,121810.0,0.75416]
[1759978252368,0.95866043,121820.0,121810.0,1.31752947]
[1759978252567,0.56266043,121820.0,121810.0,0.56536947]
[1759978252768,0.56266043,121820.0,121810.0,1.31456947]
[1759978252769,0.56166043,121820.0,121810.0,1.31456947]
[1759978253667,0.55666043,121820.0,121810.0,1.31356947]
[1759978253865,0.55966043,121820.0,121810.0,0.56536947]
[1759978254167,0.55966043,121820.0,121810.0,1.39659987]
[1759978254556,0.50132185,121820.0,121810.0,1.39659987]
[1759978255262,0.11919185,121820.0,121810.0,0.64743987]
[1759978255565,0.11919185,121820.0,121810.0,1.39643987]
[1759978255755,0.14052185,121820.0,121810.0,0.002]
[1759978255959,0.50132185,121820.0,121810.0,0.56536947]
[1759978256160,0.50132185,121820.0,121810.0,1.31460947]
[1759978257268,0.14052185,121820.0,121810.0,1.31460947]
[1759978257963,0.14052185,121820.0,121810.0,0.56536947]
[1759978258170,0.14052185,121820.0,121810.0,1.39659987]
[1759978258369,0.14052185,121820.0,121810.0,0.56536947]
[1759978258571,0.14052185,121820.0,121810.0,1.31448947]
[1759978259266,0.14052185,121820.0,121810.0,0.56536947]
[1759978259472,0.90132185,121820.0,121810.0,0.75108]
[1759978259673,0.90132185,121820.0,121810.0,0.002]
[1759978260165,0.90132185,121820.0,121810.0,0.75112]
[1759978260166,0.54052185,121820.0,121810.0,0.75112]
[1759978260367,0.90132185,121820.0,121810.0,0.75112]
[1759978260567,0.90132185,121820.0,121810.0,0.002]
[1759978260768,0.90132185,121820.0,121810.0,0.75108]
[1759978260972,0.90132185,121820.0,121810.0,0.002]
[1759978261272,0.90132185,121820.0,121810.0,0.751]
[1759978261672,0.90132185,121820.0,121810.0,0.75096]
[1759978264271,0.90132185,121820.0,121810.0,0.002]
[1759978264474,0.90132185,121820.0,121810.0,0.75084]
[1759978265371,0.90132185,121820.0,121810.0,0.56536947]
[1759978265569,0.90132185,121820.0,121810.0,1.31408947]
[1759978265874,0.90132185,121820.0,121810.0,1.31404947]
[1759978266075,0.50132185,121820.0,121810.0,1.31400947]
[1759978266464,0.03712815,121820.0,121810.0,1.39643987]
[1759978266669,0.03712815,121820.0,121810.0,1.75523987]
[1759978266864,0.03712815,121820.0,121810.0,1.40623987]
[1759978267070,0.01854,121820.0,121810.0,2.15523987]
[1759978267274,0.01854,121820.0,121810.0,1.40623987]
[1759978267672,0.14131218,121820.0,121810.0,0.92416947]
[1759978267877,0.1172604,121810.0,121800.0,0.4428766]
[1759978268084,0.13581898,121810.0,121800.0,0.3608]
[1759978268273,0.13581898,121810.0,121800.0,0.92416947]
[1759978268584,0.13581898,121810.0,121800.0,1.67388947]
[1759978268971,0.13581898,121810.0,121800.0,1.31316947]
[1759978269276,0.13581898,121810.0,121800.0,0.7498]
[1759978269776,0.13581898,121810.0,121800.0,0.56336947]
[1759978269972,0.13581898,121810.0,121800.0,1.31312947]
[1759978270479,0.13581898,121810.0,121800.0,1.31308947]
[1759978271373,0.13681898,121810.0,121800.0,0.56436947]
[1759978271573,0.49761898,121810.0,121800.0,0.75068]
[1759978271871,0.13681898,121810.0,121800.0,0.56436947]
[1759978272070,0.13681898,121810.0,121800.0,1.31396947]
[1759978272376,0.13781898,121810.0,121800.0,1.31496947]
[1759978273472,0.13781898,121810.0,121800.0,0.56536947]
[1759978273677,0.13781898,121810.0,121800.0,1.31488947]
[1759978274680,0.13781898,121810.0,121800.0,0.002]
[1759978274881,0.13781898,121810.0,121800.0,1.31472947]
[1759978276281,0.13781898,121810.0,121800.0,1.75760657]
[1759978277079,0.13781898,121810.0,121800.0,1.75752657]
[1759978279082,0.03359858,121810.0,121800.0,2.15752657]
[1759978279282,0.03359858,121810.0,121800.0,2.72089604]
[1759978279984,0.03359858,121810.0,121800.0,2.09766654]
[1759978280977,0.02055858,121810.0,121800.0,2.09766654]
[1759978281178,0.002,121810.0,121800.0,1.34838654]
[1759978281381,0.002,121810.0,121800.0,2.09782654]
[1759978281777,0.01354,121820.0,121810.0,0.0820704]
[1759978281981,0.01354,121820.0,121810.0,1.69601984]
[1759978282185,0.01354,121820.0,121810.0,2.09601984]
[1759978282487,0.0956036,121820.0,121810.0,4.14689984]
[1759978283084,0.1016036,121820.0,121810.0,4.14889984]
[1759978283284,0.01954,121820.0,121810.0,4.14889984]
[1759978283484,0.01954,121820.0,121810.0,1.34837984]
[1759978283791,0.01954,121820.0,121810.0,4.14877984]
[1759978283991,0.01554,121820.0,121810.0,4.14777984]
[1759978284193,0.01754,121820.0,121810.0,4.14877984]
[1759978284387,0.01754,121820.0,121810.0,4.14865984]
[1759978284691,0.01654,121820.0,121810.0,1.34837984]
[1759978284887,0.01654,121820.0,121810.0,4.14857984]
[1759978285091,0.01654,121820.0,121810.0,3.39917984]
[1759978285391,0.01654,121820.0,121810.0,4.14849984]
[1759978285687,0.03505487,121820.0,121810.0,4.14849984]
[1759978286095,0.03505487,121820.0,121810.0,3.39917984]
[1759978286296,0.03505487,121820.0,121810.0,4.14849984]
[1759978286988,0.01354,121840.0,121830.0,0.0820569]
[1759978287180,0.0955902,121840.0,121830.0,1.69552634]
[1759978287385,0.0955902,121840.0,121830.0,0.94636634]
[1759978287589,0.0955902,121840.0,121830.0,1.69552634]
[1759978287991,0.0955902,121840.0,121830.0,1.34636634]
[1759978288187,0.0955902,121840.0,121830.0,2.09672634]
[1759978288188,0.0985902,121840.0,121830.0,2.09672634]
[1759978288387,0.01654,121840.0,121830.0,2.09672634]
[1759978288692,0.01654,121840.0,121830.0,2.45748634]
[1759978289291,0.02154,121840.0,121830.0,2.45848634]
[1759978290088,0.02154,121840.0,121830.0,3.75976634]
[1759978290288,0.02154,121840.0,121830.0,4.50908634]
[1759978290995,0.02154,121840.0,121830.0,1.77504164]
[1759978291196,0.02154,121840.0,121830.0,4.57484164]
[1759978291997,0.1035902,121840.0,121830.0,3.42552164]
[1759978292197,0.02154,121840.0,121830.0,4.17476164]
[1759978292690,0.02154,121840.0,121830.0,4.57472164]
[1759978293095,0.02154,121840.0,121830.0,4.57488164]
[1759978294198,0.02154,121840.0,121830.0,3.82552164]
[1759978294497,0.02154,121840.0,121830.0,4.57484164]
[1759978294988,0.02154,121840.0,121830.0,4.57476164]
[1759978295192,0.02154,121840.0,121830.0,1.77504164]
[1759978295391,0.02154,121840.0,121830.0,4.57456164]
[1759978297098,0.02154,121840.0,121830.0,4.57436164]
[1759978298697,0.02154,121840.0,121830.0,1.77504164]
[1759978299001,0.02154,121840.0,121830.0,4.57432164]
[1759978300003,0.02154,121840.0,121830.0,4.57412164]
[1759978302102,0.02154,121840.0,121830.0,1.77504164]
[1759978302409,0.1035902,121840.0,121830.0,4.17384164]
[1759978303414,0.02154,121840.0,121830.0,4.17384164]
[1759978304016,0.1035902,121840.0,121830.0,4.17384164]
[1759978304412,0.02154,121840.0,121830.0,4.17384164]
[1759978304712,0.02154,121840.0,121830.0,4.17364164]
[1759978305223,0.008,121840.0,121830.0,3.82528164]
[1759978305412,0.008,121840.0,121830.0,4.57360164]
[1759978306019,0.008,121840.0,121830.0,3.82528164]
[1759978306215,0.01304,121860.0,121850.0,0.0820434]
[1759978306415,0.0950767,121860.0,121850.0,1.30715284]
[1759978306610,0.0950767,121860.0,121850.0,4.11396251]
[1759978306817,0.0950767,121860.0,121850.0,4.10567284]
[1759978307012,0.01275,121870.0,121860.0,0.0820327]
[1759978307207,0.01275,121870.0,121860.0,0.94634214]
[1759978307625,0.03117077,121870.0,121860.0,0.94634214]
[1759978307919,0.03117077,121870.0,121860.0,1.01124969]
[1759978308108,0.11320727,121870.0,121860.0,1.75960969]
[1759978308311,0.11620727,121870.0,121860.0,1.76060969]
[1759978308813,0.11620727,121870.0,121860.0,1.76160969]
[1759978308814,0.11820727,121870.0,121860.0,1.76160969]
[1759978309509,0.54036727,121870.0,121860.0,0.86630944]
[1759978309714,0.54036727,121870.0,121860.0,1.25358944]
[1759978310314,0.54036727,121870.0,121860.0,0.50550944]
[1759978310521,0.54036727,121870.0,121860.0,0.002]
[1759978310720,0.54036727,121870.0,121860.0,0.75008]
[1759978311420,0.54036727,121870.0,121860.0,0.75016]
[1759978312213,0.90116727,121870.0,121860.0,0.75016]
[1759978313120,0.54036727,121870.0,121860.0,0.75016]
[1759978313520,0.54036727,121870.0,121860.0,0.73147667]
[1759978314022,0.54036727,121870.0,121860.0,1.23498611]
[1759978314222,0.54036727,121870.0,121860.0,0.58554614]
[1759978314413,0.54036727,121870.0,121860.0,1.33354614]
[1759978314721,0.54036727,121870.0,121860.0,0.50350944]
[1759978315023,0.54036727,121870.0,121860.0,1.25138944]
[1759978315922,0.54036727,121870.0,121860.0,0.50350944]
[1759978316124,0.1169467,121860.0,121850.0,0.86430944]
[1759978316423,0.13536747,121860.0,121850.0,1.69415284]
[1759978317522,0.13736747,121860.0,121850.0,1.33435284]
[1759978317923,0.13836747,121860.0,121850.0,1.25530944]
[1759978318122,0.13836747,121860.0,121850.0,1.33735284]
[1759978318515,0.13836747,121860.0,121850.0,1.69815284]
[1759978318715,0.53836747,121860.0,121850.0,1.25530944]
[1759978318918,0.53836747,121860.0,121850.0,1.33735284]
[1759978320323,0.53836747,121860.0,121850.0,1.69815284]
[1759978321012,0.53836747,121860.0,121850.0,0.95035284]
[1759978321218,0.53836747,121860.0,121850.0,1.69815284]
[1759978321420,0.53836747,121860.0,121850.0,0.004]
[1759978321725,0.89916747,121860.0,121850.0,0.00068905]
[1759978322112,0.89916747,121860.0,121850.0,0.74848905]
[1759978322316,0.89916747,121860.0,121850.0,0.00068905]
[1759978322524,0.89916747,121860.0,121850.0,0.74848905]
[1759978322926,0.89916747,121860.0,121850.0,0.00068905]
[1759978323118,0.95750605,121860.0,121850.0,0.74848905]
[1759978323319,0.95749798,121860.0,121850.0,0.74848905]
[1759978324020,0.8991594,121860.0,121850.0,1.22900705]
[1759978324422,0.9640407,121860.0,121850.0,1.22900705]
[1759978328023,0.9640407,121860.0,121850.0,0.74848905]
[1759978328229,0.9640407,121860.0,121850.0,1.22900705]
[1759978329124,1.4445587,121860.0,121850.0,0.74856905]
[1759978330024,0.1163702,121840.0,121830.0,0.480518]
[1759978330226,0.4955829,121840.0,121830.0,1.228398]
[1759978331321,0.8955829,121840.0,121820.0,0.480518]
[1759978331524,0.1163836,121820.0,121810.0,0.3608]
[1759978331728,0.1347963,121820.0,121810.0,1.589198]
[1759978332630,0.1347963,121820.0,121810.0,1.589238]
[1759978332930,0.1163836,121820.0,121810.0,1.589238]
[1759978333125,0.13475934,121820.0,121810.0,1.589238]
[1759978333427,0.13675934,121820.0,121810.0,1.596238]
[1759978333630,0.14518395,121820.0,121810.0,1.596238]
[1759978333830,0.13675934,121820.0,121810.0,1.596238]
[1759978334026,0.13975934,121820.0,121810.0,1.625238]
[1759978334330,0.13975351,121820.0,121810.0,1.14472]
[1759978334730,0.13975351,121820.0,121810.0,1.625238]
[1759978335230,0.0998736,121820.0,121810.0,0.9593884]
[1759978335432,0.0998736,121820.0,121810.0,1.7073084]
[1759978335830,0.11824129,121820.0,121810.0,1.9717084]
[1759978336026,0.11824129,121820.0,121810.0,1.141718]
[1759978336330,0.11824129,121820.0,121810.0,1.889638]
[1759978337728,0.11824129,121820.0,121810.0,0.877318]
[1759978337928,0.13975129,121820.0,121810.0,0.036]
[1759978338138,0.9647582,121820.0,121810.0,0.036]
[1759978338435,0.9647582,121820.0,121790.0,0.3608]
[1759978338436,0.1163971,121800.0,121790.0,0.3608]
[1759978338627,0.13476479,121800.0,121790.0,1.589238]
[1759978339336,0.13476479,121800.0,121790.0,0.3608]
[1759978339536,0.1164039,121790.0,121780.0,0.841318]
[1759978339742,0.13477159,121790.0,121780.0,1.589278]
[1759978339935,0.13477159,121790.0,121780.0,1.08224316]
[1759978340134,0.13477159,121790.0,121780.0,1.83020316]
[1759978340830,0.13677159,121790.0,121780.0,1.83520316]
[1759978341332,0.13877159,121790.0,121780.0,1.83520316]
[1759978341831,0.11726159,121790.0,121780.0,1.91729376]
[1759978342236,0.11726159,121790.0,121780.0,1.83520316]
[1759978342536,0.11726159,121790.0,121780.0,1.83524316]
[1759978343333,0.11726159,121790.0,121780.0,1.91733376]
[1759978343533,0.03517769,121790.0,121780.0,1.93005534]
[1759978343730,0.03517769,121790.0,121780.0,2.67809534]
[1759978344129,0.11726159,121790.0,121780.0,0.8478906]
[1759978344332,0.11726159,121790.0,121780.0,2.67809534]
[1759978345936,0.0988939,121790.0,121780.0,2.67809534]
[1759978346941,0.01681,121790.0,121780.0,2.67813534]
[1759978347840,0.004,121790.0,121780.0,1.93005534]
[1759978348038,0.004,121790.0,121780.0,2.67813534]
[1759978348435,0.01281,121800.0,121790.0,0.0820839]
[1759978348739,0.01281,121800.0,121790.0,2.67312864]
[1759978349241,0.0948819,121810.0,121800.0,0.0820771]
[1759978349443,0.0948819,121810.0,121800.0,1.52504184]
[1759978349941,0.01281,121810.0,121800.0,1.52504184]
[1759978350643,0.03681,121810.0,121800.0,1.52504184]
[1759978350842,0.1188804,121810.0,121800.0,2.27308184]
[1759978351543,0.1198804,121810.0,121800.0,2.27408184]
[1759978352037,0.0958804,121810.0,121800.0,2.27408184]
[1759978352236,0.1038804,121810.0,121800.0,2.27408184]
[1759978352841,0.1048804,121810.0,121800.0,2.27608184]
[1759978353337,0.02281,121810.0,121800.0,2.27608184]
[1759978354148,0.02281,121810.0,121800.0,1.52804184]
[1759978354448,0.02281,121810.0,121800.0,0.8458771]
[1759978354647,0.02281,121810.0,121800.0,2.67608184]
[1759978355139,0.02281,121810.0,121800.0,2.74289898]
[1759978356242,0.1048804,121810.0,121800.0,1.99485898]
[1759978356441,0.1265704,121810.0,121800.0,2.74289898]
[1759978357341,0.1048804,121810.0,121800.0,2.74289898]
[1759978359744,0.1048804,121810.0,121800.0,1.66073424]
[1759978359956,0.1048804,121810.0,121800.0,2.74289898]
[1759978360550,0.02281,121810.0,121800.0,2.74289898]
[1759978362349,0.02281,121810.0,121800.0,2.34289898]
[1759978362858,0.02281,121810.0,121800.0,1.59485898]
[1759978363047,0.02281,121810.0,121800.0,2.34281898]
[1759978364460,0.1048804,121810.0,121800.0,2.34281898]
[1759978367657,0.1048804,121810.0,121800.0,1.59485898]
[1759978367955,0.1048804,121810.0,121800.0,2.34277898]
[1759978369055,0.48732198,121810.0,121800.0,0.43061714]
[1759978369259,0.14504179,121810.0,121800.0,0.003]
[1759978369456,0.54504179,121810.0,121800.0,1.83316316]
[1759978370958,0.54504179,121810.0,121800.0,1.11172]
[1759978371160,0.54504179,121810.0,121800.0,1.83316316]
[1759978371952,0.54504179,121810.0,121800.0,1.08524316]
[1759978372157,0.54504179,121810.0,121800.0,1.83316316]
[1759978373855,0.06297139,121810.0,121800.0,1.52804184]
[1759978374154,0.12332179,121810.0,121800.0,2.27596184]
[1759978378054,0.1048804,121810.0,121800.0,1.52804184]
[1759978378364,0.1048804,121810.0,121800.0,2.27596184]
[1759978379462,0.1048804,121810.0,121800.0,1.52804184]
[1759978379663,0.1048804,121810.0,121800.0,2.27596184]
[1759978380764,0.1048804,121810.0,121800.0,1.52804184]
[1759978380963,0.1048804,121810.0,121800.0,2.27592184]
[1759978381661,0.1266004,121810.0,121800.0,1.08524316]
[1759978381862,0.14508077,121810.0,121800.0,1.83312316]
[1759978382566,0.14508077,121810.0,121800.0,1.91520026]
[1759978383060,0.14508077,121810.0,121800.0,1.83312316]
[1759978383967,0.14508077,121810.0,121800.0,1.91520026]
[1759978384365,0.14508077,121810.0,121800.0,1.16732026]
[1759978384569,0.14508077,121810.0,121800.0,1.91520026]
[1759978385170,0.14508077,121810.0,121800.0,1.83312316]
[1759978385359,0.14508077,121810.0,121800.0,1.08524316]
[1759978385560,0.14508077,121810.0,121800.0,1.83312316]
[1759978386062,0.14508077,121810.0,121800.0,1.08524316]
[1759978386260,0.14508077,121810.0,121800.0,1.91516026]
[1759978386961,0.14508077,121810.0,121800.0,1.08524316]
[1759978387265,0.14508077,121810.0,121800.0,1.83308316]
[1759978388259,0.14508077,121810.0,121800.0,1.08524316]
[1759978388560,0.50588077,121810.0,121800.0,1.47228316]
[1759978389061,0.14508077,121810.0,121800.0,1.47228316]
[1759978389762,0.14508077,121810.0,121800.0,1.83308316]
[1759978390165,0.14508077,121810.0,121800.0,1.08524316]
[1759978390365,0.14508077,121810.0,121800.0,1.83308316]
[1759978391567,0.14508077,121810.0,121800.0,1.91516026]
[1759978392764,0.14508077,121810.0,121800.0,1.83308316]
[1759978393362,0.14508077,121810.0,121800.0,1.47228316]
[1759978394165,0.14508077,121810.0,121800.0,1.55436026]
[1759978394667,0.14508077,121810.0,121800.0,1.1937171]
[1759978394867,0.14508077,121810.0,121800.0,1.91516026]
[1759978395166,0.14508077,121810.0,121800.0,1.16732026]
[1759978395367,0.14508077,121810.0,121800.0,1.91512026]
[1759978396172,0.14508077,121810.0,121800.0,1.1116]
[1759978396367,0.14508077,121810.0,121800.0,1.83304316]
[1759978396569,0.14508077,121810.0,121800.0,1.1936771]
[1759978396766,0.14508077,121810.0,121800.0,1.91512026]
[1759978397066,0.14508077,121810.0,121800.0,1.1936771]
[1759978397263,0.14508077,121810.0,121800.0,1.91512026]
[1759978398061,0.14510777,121810.0,121800.0,1.1116]
[1759978398358,0.14510777,121810.0,121800.0,1.91512026]
[1759978400066,0.14510777,121810.0,121800.0,1.83304316]
[1759978400261,0.54510777,121810.0,121800.0,0.003]
[1759978400467,1.26662935,121810.0,121800.0,0.003]
[1759978400667,1.26662935,121810.0,121800.0,1.11152158]
[1759978401767,1.26662935,121810.0,121800.0,0.7508]
[1759978401959,0.90590777,121810.0,121800.0,0.7508]
[1759978404774,1.25859794,121810.0,121800.0,0.003]
[1759978404968,1.25859794,121810.0,121800.0,0.75076]
[1759978405265,1.25859794,121810.0,121800.0,1e-07]
[1759978405471,0.1167573,121770.0,121760.0,0.4429041]
[1759978405765,0.1167573,121770.0,121760.0,1.54335427]
[1759978406069,0.13567555,121770.0,121760.0,1.54335427]
[1759978406371,0.1167573,121770.0,121760.0,1.1906641]
[1759978406668,0.1167573,121770.0,121760.0,1.54335427]
[1759978406872,0.1207573,121770.0,121760.0,1.54435427]
[1759978407072,0.1207573,121770.0,121760.0,0.79659427]
[1759978407270,0.1227573,121770.0,121760.0,1.54435427]
[1759978408066,0.1227573,121770.0,121760.0,1.89704444]
[1759978408770,0.1227573,121770.0,121760.0,1.54435427]
[1759978409070,0.1227573,121770.0,121760.0,1.89704444]
[1759978409965,0.04066,121770.0,121760.0,1.89708444]
[1759978410270,0.01927,121770.0,121760.0,1.89708444]
[1759978411069,0.1013673,121770.0,121760.0,1.89708444]
[1759978411474,0.01927,121770.0,121760.0,1.54928444]
[1759978411765,0.01927,121770.0,121760.0,2.29708444]
[1759978412874,0.01927,121770.0,121760.0,1.54928444]
[1759978413073,0.01927,121770.0,121760.0,2.29708444]
[1759978414369,0.01927,121770.0,121760.0,1.54928444]
[1759978414674,0.01927,121770.0,121760.0,2.29708444]
[1759978414874,0.1013673,121770.0,121760.0,1.54928444]
[1759978415067,0.1013673,121770.0,121760.0,2.29708444]
[1759978415374,0.1242473,121770.0,121760.0,0.79659427]
[1759978415572,0.1242473,121770.0,121760.0,1.54439427]
[1759978415871,0.1242473,121770.0,121760.0,1.89708444]
[1759978416673,0.1242473,121770.0,121760.0,1.14928444]
[1759978416871,0.1242473,121770.0,121760.0,1.89708444]
[1759978417474,0.1242473,121770.0,121760.0,1.14928444]
[1759978417675,0.1242473,121770.0,121760.0,1.46229017]
[1759978417968,0.5242473,121770.0,121760.0,0.3618]
[1759978418174,1.2566268,121770.0,121760.0,0.7488]
[1759978418369,1.2566268,121770.0,121760.0,0.001]
[1759978418567,1.2566268,121770.0,121760.0,0.7488]
[1759978420075,0.90393663,121770.0,121760.0,0.7488]
[1759978420275,1.2566268,121770.0,121760.0,0.7488]
[1759978420877,0.90393663,121770.0,121760.0,0.7488]
[1759978421272,1.2566268,121770.0,121760.0,0.001]
[1759978421478,1.2566268,121770.0,121760.0,0.7488]
[1759978421876,1.2566268,121770.0,121760.0,0.001]
[1759978422076,1.2566268,121770.0,121760.0,0.74884]
[1759978422571,0.8566268,121770.0,121760.0,0.74884]
[1759978425081,0.8526268,121770.0,121760.0,0.74784]
[1759978425275,0.8776268,121770.0,121760.0,0.74784]
[1759978425778,0.1172408,121750.0,121740.0,0.35269017]
[1759978426077,0.13613013,121750.0,121740.0,0.35269017]
[1759978426282,0.1172476,121740.0,121730.0,0.4430218]
[1759978426479,0.13613693,121740.0,121730.0,0.79571197]
[1759978426681,0.13613693,121740.0,121730.0,1.54359197]
[1759978428694,0.13813693,121740.0,121730.0,0.71358817]
[1759978428988,0.14513693,121740.0,121730.0,1.54359247]
[1759978429382,0.14513693,121740.0,121730.0,0.79571247]
[1759978429579,0.14513693,121740.0,121730.0,1.54359247]
[1759978430187,0.14513693,121740.0,121730.0,0.71358817]
[1759978430384,0.14513693,121740.0,121730.0,1.46146817]
[1759978430781,0.14513693,121740.0,121730.0,0.71358817]
[1759978430989,0.14513693,121740.0,121730.0,1.46146817]
[1759978431988,0.14513693,121740.0,121730.0,1.54359247]
[1759978432584,0.21071279,121740.0,121730.0,1.54359247]
[1759978434184,0.21071279,121740.0,121730.0,0.79571247]
[1759978434390,0.21071279,121740.0,121730.0,1.46150817]
[1759978434585,0.21071279,121740.0,121730.0,0.71358817]
[1759978434894,0.57151279,121740.0,121730.0,0.748018]
[1759978435489,0.57151279,121740.0,121730.0,9.8e-05]
[1759978435690,0.57151279,121740.0,121730.0,0.748018]
[1759978436492,0.97151279,121740.0,121730.0,9.8e-05]
[1759978436693,0.97151279,121740.0,121730.0,0.748018]
[1759978437386,0.97151279,121740.0,121730.0,9.8e-05]
[1759978437387,1.32420296,121740.0,121730.0,9.8e-05]
[1759978437690,0.1172611,121720.0,121710.0,0.71349017]
[1759978437889,0.13615043,121720.0,121710.0,1.46141017]
[1759978438691,0.13615043,121720.0,121710.0,0.71349017]
[1759978438882,0.14215043,121720.0,121710.0,1.46141017]
[1759978439489,0.14215043,121720.0,121710.0,1.54354797]
[1759978440191,0.14215043,121720.0,121710.0,1.10061017]
[1759978441193,0.14215043,121720.0,121710.0,0.74792]
[1759978441993,0.1172678,121710.0,121700.0,0.79563417]
[1759978442193,0.13615713,121710.0,121700.0,1.54359417]
[1759978442396,0.13615713,121710.0,121700.0,1.10876]
[1759978442994,0.13615713,121710.0,121700.0,0.71349017]
[1759978443193,0.13615713,121710.0,121700.0,1.46145017]
[1759978443399,0.13615713,121710.0,121700.0,1.10876]
[1759978443593,0.13615713,121710.0,121700.0,1.1909046]
[1759978443793,0.13615713,121710.0,121700.0,1.54359477]
[1759978443992,0.13815713,121710.0,121700.0,1.54359477]
[1759978444493,0.14215713,121710.0,121700.0,1.1909046]
[1759978444795,0.14215713,121710.0,121700.0,1.10876]
[1759978445298,0.14215713,121710.0,121700.0,1.54359477]
[1759978445485,0.13615713,121710.0,121700.0,1.54359477]
[1759978445691,0.15615713,121710.0,121700.0,1.54359477]
[1759978446699,0.15615713,121710.0,121700.0,1.54363477]
[1759978446996,0.15615713,121710.0,121700.0,0.79563477]
[1759978447296,0.15615713,121710.0,121700.0,1.46145017]
[1759978447898,0.15615713,121710.0,121700.0,0.3608]
[1759978448097,0.16454621,121710.0,121700.0,0.71349017]
[1759978448287,0.16454621,121710.0,121700.0,1.10876]
[1759978448898,0.16454621,121710.0,121700.0,1.46145017]
[1759978449096,0.1188946,121700.0,121690.0,0.3608]
[1759978449299,0.13778393,121700.0,121690.0,1.10876]
[1759978449495,0.13778393,121700.0,121690.0,1.2188433]
[1759978449699,0.13778393,121700.0,121690.0,1.57153347]
[1759978450095,0.20365072,121700.0,121690.0,1.57157347]
[1759978450497,0.20565072,121700.0,121690.0,1.57157347]
[1759978450696,0.20565072,121700.0,121690.0,1.65372477]
[1759978451103,0.20565072,121700.0,121690.0,0.4708833]
[1759978451401,0.21265072,121700.0,121690.0,1.57153347]
[1759978451596,0.21265072,121700.0,121690.0,1.2188433]
[1759978451800,0.21265072,121700.0,121690.0,1.57153347]
[1759978451995,0.21265072,121700.0,121690.0,0.82357347]
[1759978452196,0.21265072,121700.0,121690.0,0.90572477]
[1759978452395,0.21265072,121700.0,121690.0,1.65372477]
[1759978453101,0.21265072,121700.0,121690.0,0.90572477]
[1759978453692,0.21265072,121700.0,121690.0,1.65372477]
[1759978454102,0.21265072,121700.0,121690.0,0.90572477]
[1759978454298,0.21265072,121700.0,121690.0,0.5530346]
[1759978454498,0.21265072,121700.0,121690.0,0.4708833]
[1759978454699,0.21265072,121700.0,121690.0,1.2188833]
[1759978454898,0.21265072,121700.0,121690.0,1.57157347]
[1759978455097,0.21265072,121700.0,121690.0,0.82357347]
[1759978455499,0.97345072,121700.0,121690.0,0.8580833]
[1759978455902,0.97345072,121700.0,121690.0,1.21077347]
[1759978457104,0.97345072,121700.0,121690.0,0.8580833]
[1759978457506,1.32614089,121700.0,121690.0,0.8580833]
[1759978457704,0.97345072,121700.0,121690.0,0.8580833]
[1759978457905,0.97345072,121700.0,121690.0,1.21077347]
[1759978458104,0.97345072,121700.0,121690.0,0.8580833]
[1759978458700,0.97345072,121700.0,121690.0,0.8581233]
[1759978460306,0.97345072,121700.0,121690.0,0.1100833]
[1759978460506,0.97345072,121700.0,121690.0,0.8581233]
[1759978461907,1.23841409,121700.0,121690.0,1.12308667]
[1759978462906,1.23841409,121700.0,121690.0,1.10437609]
[1759978463209,0.97345072,121700.0,121690.0,0.09137272]
[1759978463409,1.23841409,121700.0,121690.0,0.83937272]
[1759978463906,1.23841409,121700.0,121690.0,1.10433609]
[1759978464404,1.50337746,121700.0,121690.0,0.09137272]
[1759978464707,0.97345072,121700.0,121690.0,0.83941272]
[1759978465006,1.50337746,121700.0,121690.0,0.83941272]
[1759978465196,1.23841409,121700.0,121690.0,1.10437609]
[1759978465804,1.23841409,121700.0,121690.0,0.83941272]
[1759978466004,1.23841409,121700.0,121690.0,1.10437609]
[1759978466205,1.2380915,121700.0,121690.0,0.83941272]
[1759978466404,1.2380915,121700.0,121690.0,1.10437609]
[1759978466608,1.2380915,121700.0,121690.0,0.83941272]
[1759978467007,1.2380915,121700.0,121690.0,1.10437609]
[1759978467211,1.50305487,121700.0,121690.0,1.10437609]
[1759978467407,0.97312813,121700.0,121690.0,1.10437609]
[1759978467608,1.50305487,121700.0,121690.0,1.10437609]
[1759978468213,0.97312813,121700.0,121690.0,0.09137272]